bitfinex-derivatives/quotes_SOLF0:USTF0_20240913
["timestamp","ask_amount","ask_price","bid_price","bid_amount"]
[1726219159548,11.42,134.31,134.28,6.5043]
[1726219160940,11.42,134.32,134.28,6.5043]
[1726219165050,11.42,134.31,134.28,6.5043]
[1726219166949,11.42,134.31,134.28,3.1531]
[1726219167750,11.42,134.29,134.26,3.3517]
[1726219167961,11.42,134.28,134.24,14.479]
[1726219168149,11.42,134.28,134.25,3.3519]
[1726219168859,11.42,134.27,134.25,3.3519]
[1726219172361,11.42,134.27,134.24,6.4112]
[1726219174150,11.42,134.27,134.25,3.352]
[1726219175057,11.42,134.27,134.24,6.4112]
[1726219175259,11.42,134.27,134.24,3.059]
[1726219175462,11.42,134.27,134.24,6.4113]
[1726219175663,11.42,134.27,134.24,3.059]
[1726219177068,11.42,134.27,134.21,1.5614]
[1726219177263,11.42,134.27,134.23,3.3524]
[1726219177457,11.42,134.27,134.22,11.42]
[1726219177969,11.42,134.27,134.24,3.3523]
[1726219181560,11.42,134.27,134.25,3.352]
[1726219181968,11.42,134.27,134.22,11.42]
[1726219182361,11.42,134.27,134.24,3.3522]
[1726219184963,11.42,134.27,134.25,3.3521]
[1726219185469,11.42,134.3,134.26,3.3517]
[1726219187871,3.72307888,134.31,134.26,3.3517]
[1726219187872,11.42,134.28,134.26,3.3517]
[1726219189871,15.08149295,134.3,134.25,11.42]
[1726219190071,11.42,134.3,134.25,11.42]
[1726219190472,11.42,134.3,134.26,3.3517]
[1726219190667,15.21789055,134.3,134.26,3.3517]
[1726219190872,15.21789055,134.3,134.25,11.42]
[1726219191380,15.21789055,134.3,134.26,3.3517]
[1726219191569,11.42,134.29,134.26,3.3517]
[1726219200785,11.42,134.29,134.25,3.352]
[1726219200980,11.42,134.27,134.25,3.352]
[1726219202187,11.42,134.27,134.24,1000.0]
[1726219202784,11.42,134.27,134.25,3.3518]
[1726219203681,11.42,134.27,134.26,3.3518]
[1726219205892,11.42,134.27,134.24,1000.0]
[1726219206187,11.42,134.25,134.24,1000.0]
[1726219206579,11.42,134.27,134.24,1000.0]
[1726219207090,11.42,134.27,134.24,1003.3522]
[1726219214797,3.80040981,134.28,134.24,1000.0]
[1726219214798,11.42,134.25,134.24,1000.0]
[1726219215202,11.42,134.26,134.24,1000.0]
[1726219215502,11.42,134.25,134.24,1000.0]
[1726219222712,11.42,134.25,134.24,998.2057]
[1726219222918,11.42,134.25,134.24,921.4157]
[1726219223517,15.18919636,134.25,134.24,921.4157]
[1726219224613,11.42,134.25,134.24,921.4157]
[1726219224812,11.42,134.25,134.24,917.6157]
[1726219225013,15.06747986,134.25,134.24,917.6157]
[1726219225917,15.06747986,134.25,134.24,844.4257]
[1726219226417,11.42,134.25,134.24,840.8257]
[1726219226607,11.42,134.25,134.24,824.4957]
[1726219227013,15.10035904,134.25,134.24,824.4957]
[1726219227216,11.42,134.25,134.24,820.7757]
[1726219227915,11.42,134.25,134.24,817.7757]
[1726219228416,15.06530445,134.25,134.24,817.7757]
[1726219229116,15.06530445,134.25,134.24,744.5857]
[1726219229518,15.06530445,134.25,134.24,728.2557]
[1726219230413,11.42,134.25,134.24,724.4557]
[1726219230716,11.42,134.25,134.24,721.4557]
[1726219230916,15.1928435,134.25,134.24,721.4557]
[1726219231219,11.42,134.25,134.24,717.7857]
[1726219231419,15.15144925,134.25,134.24,717.7857]
[1726219232119,15.15144925,134.25,134.24,644.5957]
[1726219232322,11.42,134.25,134.24,641.5957]
[1726219232517,11.42,134.25,134.24,625.2657]
[1726219232820,15.12459892,134.25,134.24,625.2657]
[1726219235222,15.12459892,134.25,134.24,552.0757]
[1726219235518,15.12459892,134.25,134.24,535.7457]
[1726219236020,11.42,134.25,134.24,533.7457]
[1726219236521,15.15806682,134.25,134.24,500.18302762]
[1726219237919,15.15806682,134.25,134.24,443.32302762]
[1726219238508,11.42,134.25,134.24,426.99302762]
[1726219238709,15.11257159,134.25,134.24,426.99302762]
[1726219241026,15.11257159,134.25,134.24,370.13302762]
[1726219241426,3.69257159,134.25,134.24,370.13302762]
[1726219241628,7.78333405,134.29,134.24,370.13302762]
[1726219241926,157.04831657,134.35,134.24,370.13302762]
[1726219242119,11.42,134.25,134.24,370.13302762]
[1726219242320,15.11229252,134.25,134.24,370.13302762]
[1726219254637,11.42,134.27,134.24,370.13302762]
[1726219255442,11.42,134.26,134.24,370.13302762]
[1726219259243,3.81105063,134.25,134.24,370.13302762]
[1726219260241,11.42,134.26,134.24,370.13302762]
[1726219260635,15.07819103,134.25,134.24,370.13302762]
[1726219260840,11.42,134.25,134.24,370.13302762]
[1726219261045,15.20644396,134.25,134.24,370.13302762]
[1726219262333,11.42,134.25,134.24,366.44302762]
[1726219262544,15.14986892,134.25,134.24,366.44302762]
[1726219265536,11.42,134.25,134.24,286.45302762]
[1726219266036,15.15872194,134.25,134.24,286.45302762]
[1726219266244,11.42,134.25,134.24,283.45302762]
[1726219266839,15.20532547,134.25,134.24,283.45302762]
[1726219267145,11.42,134.25,134.24,280.45302762]
[1726219267750,15.17922749,134.25,134.24,280.45302762]
[1726219268143,15.17922749,134.25,134.24,277.45302762]
[1726219268144,11.42,134.25,134.24,277.45302762]
[1726219268544,11.42,134.25,134.24,204.26302762]
[1726219268846,15.22333375,134.25,134.24,204.26302762]
[1726219269345,3.80333375,134.25,134.24,204.26302762]
[1726219269544,11.42,134.25,134.24,204.26302762]
[1726219269737,15.06930582,134.25,134.24,204.26302762]
[1726219275748,3.64930582,134.25,134.24,204.26302762]
[1726219275951,11.42,134.26,134.24,204.26302762]
[1726219276150,15.06884015,134.26,134.24,204.26302762]
[1726219279950,11.42,134.25,134.24,204.26302762]
[1726219280662,15.10466184,134.25,134.24,204.26302762]
[1726219285457,11.42,134.25,134.24,201.10233344]
[1726219286054,15.15136027,134.25,134.24,201.10233344]
[1726219292268,11.42,134.25,134.24,197.41233344]
[1726219292666,15.1873378,134.25,134.24,197.41233344]
[1726219294180,11.42,134.25,134.24,194.41233344]
[1726219294366,11.42,134.25,134.24,76.40242572]
[1726219294870,15.18873741,134.25,134.24,76.40242572]
[1726219295863,15.18873741,134.25,134.24,73.40242572]
[1726219295864,11.42,134.25,134.24,73.40242572]
[1726219296374,15.09775374,134.25,134.24,73.40242572]
[1726219298380,11.42,134.25,134.24,71.40242572]
[1726219298770,15.13121718,134.25,134.24,71.40242572]
[1726219299865,11.42,134.25,134.24,68.40242572]
[1726219300281,15.15806682,134.25,134.24,68.40242572]
[1726219302481,3.73806682,134.25,134.24,68.40242572]
[1726219302682,11.42,134.25,134.24,68.40242572]
[1726219302883,15.05924522,134.25,134.24,68.40242572]
[1726219305087,15.05924522,134.25,134.2,3.1478]
[1726219305287,11.42,134.22,134.2,3.1478]
[1726219306086,3.77097471,134.21,134.2,3.1478]
[1726219306281,11.42,134.22,134.2,3.1478]
[1726219306783,15.07575359,134.22,134.2,3.1478]
[1726219307283,11.42,134.21,134.2,3.1478]
[1726219307984,15.14548288,134.21,134.2,3.1478]
[1726219327903,15.14548288,134.21,134.16,3.3542]
[1726219328108,11.42,134.19,134.16,6.4131]
[1726219329419,15.14482418,134.19,134.16,6.4131]
[1726219330610,3.72482418,134.19,134.16,6.4131]
[1726219330801,11.42,134.2,134.16,6.4131]
[1726219330996,3.72864921,134.19,134.16,6.4131]
[1726219332814,157.1830442,134.24,134.16,14.4789]
[1726219333015,11.42,134.22,134.16,14.4789]
[1726219333211,15.06053408,134.22,134.16,14.4789]
[1726219333915,11.42,134.2,134.16,14.4789]
[1726219334315,15.17317022,134.2,134.16,14.4789]
[1726219335819,15.17317022,134.2,134.17,3.354]
[1726219336616,15.17317022,134.2,134.16,17.8331]
[1726219336921,15.17317022,134.2,134.16,14.4789]
[1726219337217,15.17317022,134.2,134.17,3.354]
[1726219337424,3.75317022,134.2,134.16,14.4789]
[1726219337620,11.42,134.22,134.16,14.4789]
[1726219337819,11.42,134.22,134.17,3.354]
[1726219338121,15.22613158,134.22,134.17,3.354]
[1726219339820,11.42,134.21,134.17,3.354]
[1726219340523,3.79196501,134.2,134.17,3.354]
[1726219340724,157.1830442,134.24,134.18,11.42]
[1726219341024,11.42,134.23,134.18,11.42]
[1726219341517,11.42,134.23,134.18,14.7737]
[1726219342321,15.22427416,134.24,134.2,3.3532]
[1726219342523,15.22427416,134.24,134.21,3.2079]
[1726219342720,15.22427416,134.24,134.21,0.61491796]
[1726219344317,11.42,134.24,134.21,0.61491796]
[1726219344622,3.6827977,134.24,134.21,3.96791796]
[1726219344814,11.42,134.25,134.21,3.96791796]
[1726219345421,3.7197077,134.24,134.21,3.96791796]
[1726219345611,11.42,134.25,134.21,3.96791796]
[1726219346129,15.16627199,134.25,134.21,3.96791796]
[1726219347634,11.42,134.24,134.21,0.61491796]
[1726219348322,15.12190873,134.24,134.21,0.61491796]
[1726219348522,15.12190873,134.24,134.21,3.96791796]
[1726219352329,3.70190873,134.24,134.22,3.3528]
[1726219352538,11.42,134.25,134.22,3.3528]
[1726219353137,3.75000216,134.24,134.22,3.3528]
[1726219353329,3.75000216,134.24,134.21,3.96781796]
[1726219353528,3.75000216,134.24,134.21,0.61491796]
[1726219353729,3.75000216,134.24,134.21,2.16651796]
[1726219354933,3.75000216,134.24,134.22,3.3528]
[1726219355432,11.42,134.26,134.22,3.3528]
[1726219355637,3.652591,134.25,134.22,3.3528]
[1726219356830,3.652591,134.25,134.21,16.93941796]
[1726219360430,3.652591,134.25,134.21,5.51941796]
[1726219360837,15.072591,134.25,134.21,5.51941796]
[1726219361036,11.42,134.25,134.21,5.51941796]
[1726219361637,15.09235288,134.25,134.21,5.51941796]
[1726219362440,3.67235288,134.25,134.22,3.3528]
[1726219362833,3.67235288,134.25,134.21,2.16651796]
[1726219363442,3.67235288,134.25,134.21,5.51941796]
[1726219363943,3.67235288,134.25,134.2,13.0252]
[1726219365345,3.67235288,134.25,134.21,3.3529]
[1726219365839,11.42,134.24,134.21,3.3529]
[1726219367132,7.02445288,134.25,134.21,3.3529]
[1726219367836,3.67235288,134.25,134.21,3.3529]
[1726219368841,1.5601,134.31,134.23,3.3526]
[1726219369036,11.42,134.28,134.23,11.42]
[1726219369433,1.5601,134.31,134.24,11.42]
[1726219369638,11.42,134.29,134.24,11.42]
[1726219369943,11.42,134.29,134.24,14.7721]
[1726219370541,1.5601,134.31,134.24,11.42]
[1726219370742,11.42,134.29,134.25,3.352]
[1726219372247,11.42,134.29,134.24,14.7722]
[1726219372437,11.42,134.29,134.24,11.42]
[1726219373437,11.42,134.29,134.25,3.352]
[1726219373839,11.42,134.29,134.24,3.3522]
[1726219374034,11.42,134.29,134.24,14.7722]
[1726219374634,11.42,134.29,134.24,3.3522]
[1726219374831,11.42,134.29,134.24,14.7722]
[1726219375240,11.42,134.29,134.25,3.3521]
[1726219381943,11.42,134.3,134.26,3.3518]
[1726219382140,11.42,134.3,134.25,11.42]
[1726219382543,11.42,134.3,134.25,14.772]
[1726219389949,11.42,134.28,134.25,3.352]
[1726219392060,11.42,134.29,134.25,3.352]
[1726219393160,3.3508,134.3,134.25,3.352]
[1726219393361,11.42,134.3,134.26,3.3518]
[1726219393757,11.42,134.31,134.27,3.3514]
[1726219393958,3.82687155,134.32,134.27,3.3514]
[1726219394154,11.42,134.31,134.27,3.3514]
[1726219396066,11.42,134.31,134.26,14.7717]
[1726219396372,14.7706,134.31,134.26,11.42]
[1726219396873,14.7706,134.31,134.26,14.7717]
[1726219398982,14.7706,134.31,134.27,3.3515]
[1726219400075,14.7709,134.3,134.26,3.3517]
[1726219400981,3.3507,134.31,134.26,3.3517]
[1726219401181,14.7707,134.31,134.27,3.3515]
[1726219406287,14.7707,134.31,134.26,11.42]
[1726219406288,14.7707,134.31,134.26,14.7717]
[1726219406683,3.3507,134.31,134.26,14.7717]
[1726219406885,14.7707,134.31,134.26,14.7717]
[1726219407184,3.3508,134.3,134.26,14.7717]
[1726219411583,3.3508,134.3,134.27,3.3516]
[1726219412373,3.82687155,134.32,134.29,11.42]
[1726219413672,0.47647155,134.32,134.29,11.42]
[1726219414681,15.24687155,134.32,134.27,14.7715]
[1726219417490,15.24687155,134.32,134.27,3.3515]
[1726219417882,15.24687155,134.32,134.27,14.7715]
[1726219421884,0.47647155,134.32,134.28,3.3513]
[1726219422085,11.89647155,134.32,134.28,3.3513]
[1726219423291,11.89647155,134.32,134.28,14.7713]
[1726219424393,11.89647155,134.32,134.28,3.23355327]
[1726219425694,0.47647155,134.32,134.28,6.58475327]
[1726219427092,0.47647155,134.32,134.31,11.42]
[1726219428393,0.47647155,134.32,134.31,14.7706]
[1726219429296,1.12147324,134.34,134.31,11.42]
[1726219429490,1.12147324,134.34,134.33,11.42]
[1726219430398,1.12147324,134.34,134.33,14.7701]
[1726219431399,5.76284514,134.38,134.33,17.58323754]
[1726219431400,2.41384514,134.38,134.33,17.58323754]
[1726219431700,2.6980386,134.39,134.37,11.42]
[1726219431893,2.6980386,134.39,134.38,14.7688]
[1726219433601,2.6980386,134.39,134.38,3.3488]
[1726219433789,2.6980386,134.39,134.38,14.7688]
[1726219435497,2.6980386,134.39,134.35,124.54451533]
[1726219435801,2.6980386,134.39,134.36,11.42]
[1726219436495,2.6980386,134.39,134.36,14.7692]
[1726219436706,2.6980386,134.39,134.36,11.42]
[1726219436896,2.6980386,134.39,134.38,11.42]
[1726219437794,2.6980386,134.39,134.38,14.7688]
[1726219438201,2.6980386,134.39,134.38,11.42]
[1726219439294,2.6980386,134.39,134.36,3.3493]
[1726219439499,2.6980386,134.39,134.36,14.7693]
[1726219440194,2.6980386,134.39,134.37,3.349]
[1726219440595,2.6980386,134.39,134.36,14.7692]
[1726219441295,6.0466386,134.39,134.36,11.42]
[1726219441902,6.0466386,134.39,134.36,14.7693]
[1726219441903,2.6980386,134.39,134.36,14.7693]
[1726219442100,2.6980386,134.39,134.37,11.42]
[1726219445903,2.6980386,134.39,134.36,3.3493]
[1726219446104,2.6980386,134.39,134.36,14.7693]
[1726219460304,2.6980386,134.39,134.37,14.769]
[1726219462008,2.6980386,134.39,134.38,3.3488]
[1726219462313,2.6980386,134.39,134.37,11.42]
[1726219462516,2.6980386,134.39,134.37,14.769]
[1726219465314,2.6980386,134.39,134.37,3.349]
[1726219465813,2.6980386,134.39,134.36,14.7692]
[1726219466028,2.6980386,134.39,134.36,11.42]
[1726219466206,2.6980386,134.39,134.35,14.7693]
[1726219467421,6.0467386,134.39,134.35,14.7693]
[1726219469113,6.0467386,134.39,134.35,11.42]
[1726219469515,17.4667386,134.39,134.34,14.7697]
[1726219470216,17.4667386,134.39,134.34,3.3497]
[1726219470519,3.3488,134.38,134.33,17.2325]
[1726219471116,3.3491,134.37,134.33,14.77]
[1726219471310,14.7691,134.37,134.33,14.77]
[1726219472116,11.42,134.37,134.33,3.35]
[1726219472318,11.42,134.37,134.33,14.77]
[1726219472523,14.7689,134.38,134.33,14.77]
[1726219472719,18.52281032,134.38,134.33,14.77]
[1726219473116,3.3491,134.37,134.33,14.77]
[1726219473621,3.3491,134.37,134.33,3.35]
[1726219473819,3.3491,134.37,134.33,14.77]
[1726219477017,7.10291032,134.38,134.33,14.77]
[1726219477223,18.52291032,134.38,134.34,3.3498]
[1726219477626,18.52291032,134.38,134.34,14.7698]
[1726219479524,6.0467386,134.39,134.35,14.7696]
[1726219480530,2.6980386,134.39,134.36,3.3493]
[1726219481922,6.0466386,134.39,134.35,14.7694]
[1726219482127,17.4666386,134.39,134.35,14.7694]
[1726219483928,14.1180386,134.39,134.35,14.7694]
[1726219486925,14.1180386,134.39,134.36,3.3493]
[1726219487229,17.4666386,134.39,134.35,11.42]
[1726219487627,14.1180386,134.39,134.35,14.7694]
[1726219488025,14.1180386,134.39,134.35,11.42]
[1726219488329,14.1180386,134.39,134.36,3.3493]
[1726219489032,2.6980386,134.39,134.36,3.3493]
[1726219490426,17.4666386,134.39,134.35,14.7695]
[1726219492124,3.349,134.38,134.35,11.42]
[1726219492329,14.769,134.38,134.34,3.3498]
[1726219496831,14.7692,134.37,134.28,5.4737]
[1726219497027,11.42,134.37,134.33,11.42]
[1726219497633,14.7695,134.36,134.31,14.7705]
[1726219497835,11.42,134.33,134.29,2.5212]
[1726219498037,11.42,134.33,134.3,3.3508]
[1726219498732,15.10556317,134.34,134.3,3.3508]
[1726219499719,18.45536317,134.34,134.3,3.3508]
[1726219501328,11.42,134.33,134.3,3.3508]
[1726219502133,11.42,134.33,134.29,14.771]
[1726219503639,14.7701,134.33,134.29,14.771]
[1726219510639,14.7704,134.32,134.27,11.42]
[1726219511141,14.7704,134.32,134.28,3.3513]
[1726219512542,11.42,134.31,134.26,3.3518]
[1726219512731,2.5305,134.33,134.25,14.1053]
[1726219512931,11.42,134.32,134.27,11.42]
[1726219513336,2.5305,134.33,134.28,11.42]
[1726219513644,15.16469036,134.32,134.28,11.42]
[1726219513838,11.42,134.32,134.28,11.42]
[1726219514538,3.3501,134.33,134.29,14.7709]
[1726219514941,14.77,134.34,134.29,14.7709]
[1726219515242,18.48264624,134.34,134.29,14.7709]
[1726219515830,3.71264624,134.34,134.31,3.3506]
[1726219516139,11.42,134.34,134.29,11.42]
[1726219516545,15.11346546,134.34,134.29,11.42]
[1726219516946,18.46336546,134.34,134.3,3.3507]
[1726219520644,18.45347494,134.35,134.31,3.3505]
[1726219521848,3.68377494,134.35,134.32,3.3503]
[1726219527946,15.10377494,134.35,134.32,3.3503]
[1726219529043,15.10377494,134.35,134.31,11.42]
[1726219529044,11.42,134.34,134.31,3.3505]
[1726219529239,11.42,134.34,134.3,11.42]
[1726219529952,14.7698,134.34,134.31,3.3506]
[1726219531253,14.7698,134.34,134.3,14.7706]
[1726219531453,14.7702,134.33,134.29,11.42]
[1726219531955,14.7702,134.33,134.29,14.7709]
[1726219532246,3.3503,134.32,134.29,14.7709]
[1726219532452,14.7703,134.32,134.28,3.3512]
[1726219534357,14.7703,134.32,134.27,14.7714]
[1726219535758,14.7703,134.32,134.28,3.3513]
[1726219537249,14.7703,134.32,134.27,14.7715]
[1726219537561,14.7706,134.31,134.27,3.3515]
[1726219537762,14.7706,134.31,134.27,14.7715]
[1726219540864,3.351,134.3,134.26,3.3517]
[1726219541053,3.351,134.3,134.26,14.7717]
[1726219542166,3.3511,134.29,134.26,11.42]
[1726219543666,3.3511,134.29,134.25,14.7719]
[1726219544167,3.3511,134.29,134.26,3.3518]
[1726219545759,14.7709,134.3,134.26,3.3518]
[1726219545964,11.42,134.31,134.27,3.3516]
[1726219546857,2.5249,134.32,134.28,3.3512]
[1726219547053,13.9449,134.32,134.28,3.3512]
[1726219547255,13.9449,134.32,134.27,11.42]
[1726219547452,17.2954,134.32,134.27,11.42]
[1726219548455,11.42,134.32,134.28,3.3512]
[1726219549757,14.7703,134.32,134.28,3.3512]
[1726219550875,11.42,134.31,134.27,14.7714]
[1726219551970,14.7706,134.31,134.27,14.7714]
[1726219552269,11.42,134.3,134.27,3.3514]
[1726219553171,11.42,134.3,134.26,14.7717]
[1726219553871,14.7709,134.3,134.26,14.7717]
[1726219554767,14.7711,134.29,134.26,3.3517]
[1726219554959,14.7711,134.29,134.25,3.352]
[1726219555555,18.40986881,134.29,134.25,3.352]
[1726219557174,3.3514,134.28,134.25,3.352]
[1726219557972,3.3514,134.28,134.24,3.3522]
[1726219558582,11.42,134.27,134.24,3.3522]
[1726219559762,14.7719,134.26,134.23,3.3525]
[1726219560169,11.42,134.26,134.23,3.3525]
[1726219560561,11.42,134.26,134.22,3.3527]
[1726219561175,14.7719,134.26,134.22,3.3527]
[1726219561571,14.7719,134.26,134.21,11.42]
[1726219561778,3.3521,134.25,134.19,5.1646]
[1726219561983,11.42,134.26,134.19,5.1646]
[1726219562274,11.42,134.26,134.22,3.3527]
[1726219563779,11.42,134.26,134.21,14.773]
[1726219564276,3.3521,134.25,134.22,3.3528]
[1726219567169,3.3521,134.25,134.21,14.773]
[1726219567681,3.3521,134.25,134.22,3.3528]
[1726219571375,14.7721,134.25,134.22,3.3528]
[1726219571586,14.7721,134.25,134.21,14.773]
[1726219572277,11.42,134.24,134.21,3.353]
[1726219574481,11.42,134.24,134.19,16.5846]
[1726219574482,3.64910188,134.27,134.22,11.42]
[1726219574686,10.55209275,134.32,134.23,11.42]
[1726219574687,2.7696,134.32,134.23,11.42]
[1726219574985,11.42,134.28,134.23,11.42]
[1726219575174,3.65018232,134.27,134.23,11.42]
[1726219575886,3.65018232,134.27,134.24,3.3522]
[1726219576985,11.42,134.28,134.24,3.3522]
[1726219577580,3.66136662,134.27,134.24,3.3522]
[1726219579085,15.08136662,134.27,134.24,3.3522]
[1726219580487,18.43296662,134.27,134.23,3.3525]
[1726219580884,11.42,134.25,134.19,5.1646]
[1726219581079,11.42,134.25,134.21,11.42]
[1726219581687,15.16571343,134.25,134.21,11.42]
[1726219581892,15.16571343,134.25,134.22,3.3528]
[1726219582185,18.51791343,134.25,134.21,11.42]
[1726219582387,11.42,134.24,134.21,3.3529]
[1726219583496,11.42,134.24,134.22,3.3528]
[1726219587892,11.42,134.24,134.2,11.42]
[1726219588499,11.42,134.24,134.22,3.3527]
[1726219590504,7.03891974,134.25,134.22,3.3527]
[1726219590899,18.45891974,134.25,134.22,3.3527]
[1726219591202,15.10681974,134.25,134.22,3.3527]
[1726219591406,3.68681974,134.25,134.23,3.3525]
[1726219591704,14.772,134.26,134.23,3.3525]
[1726219592102,14.772,134.26,134.21,11.42]
[1726219592103,14.772,134.26,134.22,3.3527]
[1726219592713,18.54977448,134.26,134.22,3.3527]
[1726219593012,18.54977448,134.26,134.23,3.3526]
[1726219595903,11.42,134.24,134.23,3.3526]
[1726219597309,11.42,134.24,134.22,3.3527]
[1726219600400,11.42,134.24,134.21,3.3529]
[1726219603401,11.42,134.23,134.22,3.3528]
[1726219603808,11.42,134.24,134.22,3.3528]
[1726219605514,11.42,134.24,134.21,3.3529]
[1726219606105,3.77777448,134.26,134.19,5.1646]
[1726219606410,11.42,134.24,134.19,16.5846]
[1726219606609,15.23869242,134.24,134.19,16.5846]
[1726219607014,15.23869242,134.24,134.22,3.3528]
[1726219607406,3.81869242,134.24,134.22,3.3528]
[1726219607708,3.3522,134.25,134.22,3.3528]
[1726219607916,11.42,134.24,134.22,3.3528]
[1726219609811,11.42,134.24,134.21,3.3529]
[1726219610011,11.42,134.23,134.21,3.3529]
[1726219613421,14.7726,134.23,134.2,3.3532]
[1726219613606,11.42,134.22,134.2,3.3532]
[1726219616805,3.3527,134.23,134.2,3.3532]
[1726219617013,11.42,134.22,134.2,3.3532]
[1726219618122,7.04360231,134.23,134.2,3.3532]
[1726219618305,11.42,134.22,134.2,3.3532]
[1726219621815,11.42,134.21,134.2,3.3532]
[1726219623427,11.42,134.21,134.19,3.3534]
[1726219627026,11.42,134.2,134.19,3.3534]
[1726219627216,11.42,134.2,134.18,3.3537]
[1726219628832,11.42,134.19,134.18,3.3537]
[1726219629923,11.42,134.19,134.17,3.3539]
[1726219632515,14.7736,134.19,134.16,128.06936958]
[1726219632723,11.42,134.18,134.13,11.42]
[1726219633223,11.42,134.18,134.15,3.3544]
[1726219633632,11.42,134.17,134.15,3.3544]
[1726219642441,11.42,134.16,134.15,3.3544]
[1726219645143,11.42,134.16,134.14,3.3547]
[1726219658459,11.42,134.16,134.15,3.3546]
[1726219659558,11.42,134.16,134.14,3.3548]
[1726219662160,11.42,134.16,134.13,3.355]
[1726219662161,11.42,134.15,134.13,3.355]
[1726219662359,3.3543,134.16,134.13,3.355]
[1726219662360,11.42,134.14,134.13,3.355]
[1726219669565,11.42,134.14,134.12,3.3552]
[1726219675566,14.7752,134.13,134.1,3.3557]
[1726219675770,11.42,134.11,134.1,3.3557]
[1726219676361,11.6262903,134.18,134.08,11.42]
[1726219676565,11.42,134.13,134.06,2.7787]
[1726219676758,11.42,134.13,134.08,11.42]
[1726219676965,11.6262903,134.18,134.12,3.3553]
[1726219677165,11.42,134.13,134.12,3.3553]
[1726219677361,11.42,134.13,134.08,11.42]
[1726219677569,11.42,134.13,134.11,3.3554]
[1726219678871,11.42,134.12,134.11,3.3554]
[1726219680663,3.3549,134.14,134.11,3.3554]
[1726219680664,3.3547,134.15,134.11,3.3554]
[1726219680865,11.42,134.12,134.11,3.3554]
[1726219681166,11.6262903,134.18,134.11,3.3554]
[1726219681367,11.42,134.12,134.11,3.3554]
[1726219682273,11.42,134.12,134.1,3.3557]
[1726219683571,3.3549,134.14,134.1,3.3557]
[1726219683572,11.42,134.11,134.1,3.3557]
[1726219703785,11.42,134.11,134.09,3.3559]
[1726219703987,11.42,134.11,134.06,2.7787]
[1726219704187,11.42,134.11,134.07,11.42]
[1726219704683,11.42,134.11,134.1,3.3558]
[1726219705478,11.42,134.12,134.1,3.3558]
[1726219706192,3.3552,134.13,134.11,3.3556]
[1726219706391,11.42,134.12,134.11,3.3556]
[1726219706592,11.42,134.13,134.08,11.42]
[1726219706788,168.86169122,134.18,134.09,11.42]
[1726219707094,11.42,134.14,134.09,11.42]
[1726219707276,11.42,134.14,134.12,3.3552]
[1726219707582,11.42,134.14,134.09,11.42]
[1726219708291,11.42,134.14,134.13,3.3551]
[1726219716300,11.42,134.14,134.09,11.42]
[1726219716701,3.3547,134.15,134.13,3.355]
[1726219716900,14.7747,134.15,134.13,3.355]
[1726219717595,11.42,134.15,134.13,3.355]
[1726219718797,14.7746,134.15,134.12,3.3552]
[1726219719005,11.42,134.15,134.12,3.3552]
[1726219719495,11.42,134.15,134.13,3.3551]
[1726219720206,3.3545,134.16,134.13,3.3551]
[1726219720394,11.42,134.15,134.13,3.3551]
[1726219727624,14.7746,134.15,134.12,3.3553]
[1726219728408,3.3544,134.16,134.13,3.355]
[1726219728614,11.42,134.15,134.13,3.355]
[1726219749134,3.3543,134.16,134.13,3.355]